[Event "Late-Titled-Tuesday-Blitz-August-29-2023"]
[Site "Chess.com"]
[Date "2023.08.29"]
[Round "5"]
[White "Matibar"]
[Black "NigelDwarf"]
[Result "0-1"]
[WhiteElo "2828"]
[BlackElo "2559"]
[TimeControl "180+1"]
[EndTime "14:55:00 PDT"]
[Termination "NigelDwarf won by resignation"]

1. d4 {[%clk 0:03:00.9]} 1... Nf6 {[%clk 0:02:59.5]} 2. Nf3 {[%clk 0:03:00.5]}
2... c5 {[%clk 0:02:58.7]} 3. d5 {[%clk 0:02:59.9]} 3... b5 {[%clk 0:02:56.7]}
4. Bg5 {[%clk 0:02:54.7]} 4... g6 {[%clk 0:02:56]} 5. Nbd2 {[%clk 0:02:52.7]}
5... Bg7 {[%clk 0:02:54.9]} 6. e4 {[%clk 0:02:52.9]} 6... O-O {[%clk 0:02:46.5]}
7. a4 {[%clk 0:02:31.5]} 7... b4 {[%clk 0:02:44]} 8. Bd3 {[%clk 0:02:29.5]} 8...
d6 {[%clk 0:02:43]} 9. O-O {[%clk 0:02:27.1]} 9... Bg4 {[%clk 0:02:37.9]} 10. h3
{[%clk 0:02:18.4]} 10... Bxf3 {[%clk 0:02:36.8]} 11. Qxf3 {[%clk 0:02:18.5]}
11... h6 {[%clk 0:02:25.7]} 12. Bf4 {[%clk 0:02:15]} 12... Nh5 {[%clk
0:01:57.7]} 13. Be3 {[%clk 0:02:05.2]} 13... Bxb2 {[%clk 0:01:51.1]} 14. Bxh6
{[%clk 0:02:04.7]} 14... Bxa1 {[%clk 0:01:39.4]} 15. Rxa1 {[%clk 0:02:04.5]}
15... Nd7 {[%clk 0:01:35.7]} 16. Nc4 {[%clk 0:01:57]} 16... Re8 {[%clk
0:01:22.7]} 17. a5 {[%clk 0:01:47.7]} 17... Rb8 {[%clk 0:01:10]} 18. g4 {[%clk
0:01:44.4]} 18... Nhf6 {[%clk 0:01:07.8]} 19. Qg3 {[%clk 0:01:38.9]} 19... b3
{[%clk 0:01:03.3]} 20. c3 {[%clk 0:01:26.7]} 20... b2 {[%clk 0:00:41.2]} 21. Rb1
{[%clk 0:01:26.2]} 21... Rb3 {[%clk 0:00:31.5]} 22. Bc2 {[%clk 0:01:25.2]} 22...
Rb8 {[%clk 0:00:27.1]} 23. Bd2 {[%clk 0:01:19.9]} 23... Qc7 {[%clk 0:00:18.9]}
24. h4 {[%clk 0:01:13.3]} 24... Ne5 {[%clk 0:00:15.9]} 25. Nxe5 {[%clk
0:01:11.9]} 25... dxe5 {[%clk 0:00:16.8]} 26. h5 {[%clk 0:01:12.6]} 26... gxh5
{[%clk 0:00:16.3]} 27. gxh5+ {[%clk 0:01:11.7]} 27... Kh7 {[%clk 0:00:16.3]} 28.
Qe3 {[%clk 0:01:10.6]} 28... Rg8+ {[%clk 0:00:13.5]} 29. Kf1 {[%clk 0:01:07.4]}
29... Ng4 {[%clk 0:00:13.5]} 30. Qh3 {[%clk 0:01:07.2]} 30... Qb7 {[%clk
0:00:12.5]} 31. Ke2 {[%clk 0:01:03.7]} 31... Qa6+ {[%clk 0:00:11.7]} 32. Bd3
{[%clk 0:01:03.8]} 32... c4 {[%clk 0:00:11.6]} 33. Bc2 {[%clk 0:01:04.2]} 33...
Qxa5 {[%clk 0:00:12]} 34. Qf3 {[%clk 0:01:04.1]} 34... Qc5 {[%clk 0:00:08.7]}
35. Qxf7+ {[%clk 0:01:00.6]} 35... Rg7 {[%clk 0:00:09]} 36. Qf5+ {[%clk
0:01:00.8]} 36... Kg8 {[%clk 0:00:09.4]} 37. h6 {[%clk 0:00:51.3]} 37... Rf8
{[%clk 0:00:08.5]} 38. Qe6+ {[%clk 0:00:51.4]} 38... Kh7 {[%clk 0:00:08.6]} 39.
Kd1 {[%clk 0:00:17.3]} 39... Nxf2+ {[%clk 0:00:08]} 40. Ke2 {[%clk 0:00:17.6]}
40... Nd3 {[%clk 0:00:06.9]} 41. Bxd3 {[%clk 0:00:17.7]} 41... cxd3+ {[%clk
0:00:06.9]} 42. Kxd3 {[%clk 0:00:17.6]} 42... Qb5+ {[%clk 0:00:06.6]} 43. Kc2
{[%clk 0:00:17.7]} 43... Qa4+ {[%clk 0:00:06.8]} 44. Kd3 {[%clk 0:00:18]} 44...
Rg3+ {[%clk 0:00:06.6]} 45. Ke2 {[%clk 0:00:15.6]} 45... Qxe4+ {[%clk
0:00:06.6]} 0-1

[Event "Late-Titled-Tuesday-Blitz-August-29-2023"]
[Site "Chess.com"]
[Date "2023.08.29"]
[Round "5"]
[White "MathiasCasalaspro"]
[Black "K2JW"]
[Result "1-0"]
[WhiteElo "2188"]
[BlackElo "2349"]
[TimeControl "180+1"]
[EndTime "14:55:02 PDT"]
[Termination "MathiasCasalaspro won on time"]

1. e4 {[%clk 0:03:00.9]} 1... d6 {[%clk 0:02:58.2]} 2. d4 {[%clk 0:03:00.3]}
2... e5 {[%clk 0:02:57]} 3. dxe5 {[%clk 0:02:59.9]} 3... dxe5 {[%clk 0:02:57.9]}
4. Qxd8+ {[%clk 0:03:00.4]} 4... Kxd8 {[%clk 0:02:58.8]} 5. Bc4 {[%clk
0:03:00.9]} 5... Ke8 {[%clk 0:02:48.5]} 6. Nc3 {[%clk 0:02:59.4]} 6... c6 {[%clk
0:02:47.6]} 7. Nf3 {[%clk 0:02:53.2]} 7... Bd6 {[%clk 0:02:43.4]} 8. Ng5 {[%clk
0:02:40]} 8... Nh6 {[%clk 0:02:39.3]} 9. Be3 {[%clk 0:02:37.7]} 9... f6 {[%clk
0:02:33.8]} 10. Ne6 {[%clk 0:02:34.7]} 10... Bxe6 {[%clk 0:02:18.2]} 11. Bxe6
{[%clk 0:02:35.6]} 11... Ke7 {[%clk 0:02:17.6]} 12. Bxh6 {[%clk 0:02:23.7]}
12... Kxe6 {[%clk 0:02:16.3]} 13. Bxg7 {[%clk 0:02:00.4]} 13... Rg8 {[%clk
0:02:15.8]} 14. Bh6 {[%clk 0:02:00.7]} 14... Rxg2 {[%clk 0:02:15.4]} 15. Be3
{[%clk 0:01:57]} 15... Nd7 {[%clk 0:01:44.7]} 16. O-O-O {[%clk 0:01:56.4]} 16...
b5 {[%clk 0:00:56.3]} 17. Ne2 {[%clk 0:01:56.3]} 17... Bc5 {[%clk 0:00:54]} 18.
Ng3 {[%clk 0:01:37.2]} 18... Bxe3+ {[%clk 0:00:51.4]} 19. fxe3 {[%clk
0:01:38.1]} 19... a5 {[%clk 0:00:35.7]} 20. Nf5 {[%clk 0:01:36.7]} 20... Nc5
{[%clk 0:00:35.9]} 21. Rd6+ {[%clk 0:01:24.7]} 21... Kf7 {[%clk 0:00:36]} 22.
Ng3 {[%clk 0:01:13.9]} 22... Rc8 {[%clk 0:00:24.9]} 23. Rf1 {[%clk 0:01:13.3]}
23... Ne6 {[%clk 0:00:20]} 24. Rd7+ {[%clk 0:01:09.9]} 24... Kg6 {[%clk
0:00:17.3]} 25. Rd6 {[%clk 0:00:48.8]} 25... Kf7 {[%clk 0:00:17.1]} 26. Nh5
{[%clk 0:00:44.9]} 26... Ke7 {[%clk 0:00:14.8]} 27. Rd2 {[%clk 0:00:35.1]} 27...
Rxd2 {[%clk 0:00:11.8]} 28. Kxd2 {[%clk 0:00:36]} 28... Nc5 {[%clk 0:00:08.5]}
29. Ng3 {[%clk 0:00:28.9]} 29... Rg8 {[%clk 0:00:07.2]} 30. Ke2 {[%clk
0:00:23.9]} 30... a4 {[%clk 0:00:06.4]} 31. a3 {[%clk 0:00:23.2]} 31... Ke6
{[%clk 0:00:06.6]} 32. Rf5 {[%clk 0:00:20.1]} 32... Rg4 {[%clk 0:00:05.1]} 33.
Kf3 {[%clk 0:00:18.7]} 33... Rh4 {[%clk 0:00:03.8]} 34. Rh5 {[%clk 0:00:12.1]}
34... Rxh5 {[%clk 0:00:03.4]} 35. Nxh5 {[%clk 0:00:13]} 35... f5 {[%clk
0:00:01.7]} 36. Ng7+ {[%clk 0:00:13]} 36... Kf6 {[%clk 0:00:02]} 37. Nxf5 {[%clk
0:00:11.2]} 37... Ne6 {[%clk 0:00:02.4]} 38. h4 {[%clk 0:00:08.6]} 38... h5
{[%clk 0:00:01.8]} 39. Nd6 {[%clk 0:00:07.8]} 39... Ke7 {[%clk 0:00:01.8]} 40.
Nf5+ {[%clk 0:00:06.8]} 40... Kf6 {[%clk 0:00:02.3]} 41. Ng3 {[%clk 0:00:07.4]}
41... Ng7 {[%clk 0:00:02.4]} 42. b3 {[%clk 0:00:06.4]} 1-0

[Event "Late-Titled-Tuesday-Blitz-August-29-2023"]
[Site "Chess.com"]
[Date "2023.08.29"]
[Round "5"]
[White "Defenstrator"]
[Black "PawnEatingZombie"]
[Result "0-1"]
[WhiteElo "2278"]
[BlackElo "2101"]
[TimeControl "180+1"]
[EndTime "14:55:06 PDT"]
[Termination "PawnEatingZombie won by resignation"]

1. d4 {[%clk 0:03:00]} 1... Nf6 {[%clk 0:02:58.3]} 2. Kd2 {[%clk 0:02:59.3]}
2... d5 {[%clk 0:02:51.8]} 3. Ke1 {[%clk 0:02:54.3]} 3... Bf5 {[%clk 0:02:50.3]}
4. Qd2 {[%clk 0:02:49.4]} 4... e6 {[%clk 0:02:47.5]} 5. Qd1 {[%clk 0:02:47.2]}
5... c5 {[%clk 0:02:45.9]} 6. e3 {[%clk 0:02:44.5]} 6... Nc6 {[%clk 0:02:45.8]}
7. c3 {[%clk 0:02:44.3]} 7... Bd6 {[%clk 0:02:36.9]} 8. Bd3 {[%clk 0:02:41.5]}
8... Bxd3 {[%clk 0:02:35.8]} 9. Qxd3 {[%clk 0:02:41.5]} 9... O-O {[%clk
0:02:32.6]} 10. f4 {[%clk 0:02:37.9]} 10... Ne4 {[%clk 0:02:18.5]} 11. Nf3
{[%clk 0:02:34.5]} 11... f5 {[%clk 0:02:12.8]} 12. a3 {[%clk 0:02:29]} 12... c4
{[%clk 0:02:12.7]} 13. Qc2 {[%clk 0:02:24.8]} 13... b5 {[%clk 0:02:12.5]} 14.
Nbd2 {[%clk 0:02:20.8]} 14... a5 {[%clk 0:02:11.4]} 15. Nxe4 {[%clk 0:02:18]}
15... fxe4 {[%clk 0:02:08.4]} 16. Ng5 {[%clk 0:02:02]} 16... Qe7 {[%clk
0:02:01.6]} 17. Qe2 {[%clk 0:01:51.6]} 17... h6 {[%clk 0:02:00.4]} 18. h4 {[%clk
0:01:52.5]} 18... b4 {[%clk 0:01:53.7]} 19. Qh5 {[%clk 0:01:30.4]} 19... bxc3
{[%clk 0:01:34]} 20. Qg6 {[%clk 0:01:27]} 20... hxg5 {[%clk 0:01:03]} 21. hxg5
{[%clk 0:01:26.4]} 21... Rf6 {[%clk 0:00:49.6]} 22. gxf6 {[%clk 0:01:07]} 22...
Qxf6 {[%clk 0:00:49.5]} 23. Qxf6 {[%clk 0:00:50.5]} 23... gxf6 {[%clk
0:00:49.2]} 24. bxc3 {[%clk 0:00:51.1]} 24... Rb8 {[%clk 0:00:48.5]} 25. Kd2
{[%clk 0:00:42.1]} 25... a4 {[%clk 0:00:48.3]} 26. Kc2 {[%clk 0:00:34.7]} 26...
Rb3 {[%clk 0:00:47.7]} 27. g4 {[%clk 0:00:34]} 27... Na7 {[%clk 0:00:43.7]} 28.
Bb2 {[%clk 0:00:29.3]} 28... Nb5 {[%clk 0:00:43.7]} 29. Rh6 {[%clk 0:00:25.9]}
29... Bxa3 {[%clk 0:00:33.4]} 30. Rb1 {[%clk 0:00:06.9]} 30... Bxb2 {[%clk
0:00:09.9]} 31. Rxb2 {[%clk 0:00:06.8]} 31... Rxc3+ {[%clk 0:00:10.6]} 32. Kd2
{[%clk 0:00:06.1]} 32... Rb3 {[%clk 0:00:11.3]} 33. Ra2 {[%clk 0:00:05.5]} 33...
a3 {[%clk 0:00:11.2]} 34. Rxf6 {[%clk 0:00:04.3]} 34... Rb2+ {[%clk 0:00:07.4]}
35. Rxb2 {[%clk 0:00:05]} 35... axb2 {[%clk 0:00:08.3]} 36. Kc2 {[%clk
0:00:05.6]} 36... c3 {[%clk 0:00:07.2]} 37. Rxe6 {[%clk 0:00:03.2]} 37... Na3+
{[%clk 0:00:07.2]} 38. Kxc3 {[%clk 0:00:03.4]} 38... b1=Q {[%clk 0:00:07.6]} 39.
Rc6 {[%clk 0:00:02.5]} 39... Qc1+ {[%clk 0:00:06.9]} 0-1

[Event "Late-Titled-Tuesday-Blitz-August-29-2023"]
[Site "Chess.com"]
[Date "2023.08.29"]
[Round "5"]
[White "Korchmar_Vasiliy"]
[Black "dodoucb"]
[Result "0-1"]
[WhiteElo "2673"]
[BlackElo "2456"]
[TimeControl "180+1"]
[EndTime "14:55:07 PDT"]
[Termination "dodoucb won on time"]

1. e4 {[%clk 0:03:00]} 1... c6 {[%clk 0:02:59.9]} 2. d4 {[%clk 0:02:58.3]} 2...
d5 {[%clk 0:03:00.8]} 3. exd5 {[%clk 0:02:58.2]} 3... cxd5 {[%clk 0:03:01.7]} 4.
Bd3 {[%clk 0:02:58.2]} 4... Nf6 {[%clk 0:03:02.6]} 5. h3 {[%clk 0:02:57.2]} 5...
Nc6 {[%clk 0:02:59.5]} 6. c3 {[%clk 0:02:56.3]} 6... Qc7 {[%clk 0:02:59.5]} 7.
Nf3 {[%clk 0:02:55.1]} 7... e5 {[%clk 0:03:00]} 8. dxe5 {[%clk 0:02:54.5]} 8...
Nxe5 {[%clk 0:03:00.9]} 9. O-O {[%clk 0:02:42.3]} 9... Bd6 {[%clk 0:02:57.6]}
10. Nxe5 {[%clk 0:02:29.7]} 10... Bxe5 {[%clk 0:02:56.4]} 11. Bb5+ {[%clk
0:02:26.8]} 11... Bd7 {[%clk 0:02:53.5]} 12. Bxd7+ {[%clk 0:02:26.6]} 12... Nxd7
{[%clk 0:02:20.1]} 13. Qxd5 {[%clk 0:02:25.9]} 13... O-O {[%clk 0:02:20.5]} 14.
Be3 {[%clk 0:02:24.3]} 14... Rad8 {[%clk 0:02:20.4]} 15. Nd2 {[%clk 0:02:21.1]}
15... Rfe8 {[%clk 0:02:19.6]} 16. Rfe1 {[%clk 0:02:15.7]} 16... b6 {[%clk
0:02:19]} 17. Qc4 {[%clk 0:02:13]} 17... Qb7 {[%clk 0:02:16.2]} 18. Rad1 {[%clk
0:02:10]} 18... Bb8 {[%clk 0:02:04]} 19. Nf3 {[%clk 0:01:46.1]} 19... h6 {[%clk
0:02:03.4]} 20. Bf4 {[%clk 0:01:41.6]} 20... b5 {[%clk 0:01:57.2]} 21. Rxe8+
{[%clk 0:01:36.7]} 21... Rxe8 {[%clk 0:01:56.9]} 22. Qd4 {[%clk 0:01:36.5]}
22... Nf6 {[%clk 0:01:38.2]} 23. Bxb8 {[%clk 0:01:03.7]} 23... Qxb8 {[%clk
0:01:38.2]} 24. Re1 {[%clk 0:00:50]} 24... Rd8 {[%clk 0:01:30.4]} 25. Qe5 {[%clk
0:00:46.7]} 25... Qb7 {[%clk 0:01:30.9]} 26. Qe7 {[%clk 0:00:44.1]} 26... Rd7
{[%clk 0:01:28.4]} 27. Qc5 {[%clk 0:00:41.8]} 27... Rd5 {[%clk 0:01:21]} 28. Qb4
{[%clk 0:00:35.6]} 28... a5 {[%clk 0:01:19]} 29. Qf4 {[%clk 0:00:32.1]} 29... b4
{[%clk 0:01:09.2]} 30. c4 {[%clk 0:00:25.8]} 30... Rd3 {[%clk 0:01:01.4]} 31.
Rc1 {[%clk 0:00:24.7]} 31... Qd7 {[%clk 0:00:34.8]} 32. Ne5 {[%clk 0:00:15.4]}
32... Rd1+ {[%clk 0:00:33.8]} 33. Kh2 {[%clk 0:00:15.6]} 33... Qd6 {[%clk
0:00:33.4]} 34. Rxd1 {[%clk 0:00:15.6]} 34... Qxd1 {[%clk 0:00:33]} 35. c5
{[%clk 0:00:16.5]} 35... Qc2 {[%clk 0:00:29.3]} 36. c6 {[%clk 0:00:16.6]} 36...
Qc5 {[%clk 0:00:25.4]} 37. Qe3 {[%clk 0:00:10.8]} 37... Qd6 {[%clk 0:00:20.4]}
38. f4 {[%clk 0:00:09.2]} 38... Nd5 {[%clk 0:00:20.5]} 39. Qd4 {[%clk
0:00:08.8]} 39... f6 {[%clk 0:00:18.9]} 40. Ng6 {[%clk 0:00:08.7]} 40... Kf7
{[%clk 0:00:18.7]} 41. c7 {[%clk 0:00:03.3]} 41... Qc6 {[%clk 0:00:12.3]} 0-1

[Event "Late-Titled-Tuesday-Blitz-August-29-2023"]
[Site "Chess.com"]
[Date "2023.08.29"]
[Round "5"]
[White "kingofthenil"]
[Black "MITerryble"]
[Result "1-0"]
[WhiteElo "2678"]
[BlackElo "2903"]
[TimeControl "180+1"]
[EndTime "14:55:16 PDT"]
[Termination "kingofthenil won on time"]

1. Nf3 {[%clk 0:03:00.9]} 1... d5 {[%clk 0:02:57.3]} 2. e3 {[%clk 0:03:00.1]}
2... Nf6 {[%clk 0:02:57.2]} 3. c4 {[%clk 0:03:00.5]} 3... e6 {[%clk 0:02:57.1]}
4. b3 {[%clk 0:03:00.9]} 4... g6 {[%clk 0:02:52.9]} 5. Bb2 {[%clk 0:02:59.6]}
5... Bg7 {[%clk 0:02:53.1]} 6. Be2 {[%clk 0:02:44.4]} 6... O-O {[%clk
0:02:52.4]} 7. O-O {[%clk 0:02:45]} 7... a5 {[%clk 0:02:40.2]} 8. Nc3 {[%clk
0:02:40.8]} 8... c6 {[%clk 0:02:27.6]} 9. d4 {[%clk 0:02:25.8]} 9... Nbd7 {[%clk
0:02:16.1]} 10. Qc2 {[%clk 0:02:20.2]} 10... b6 {[%clk 0:02:01.8]} 11. Rad1
{[%clk 0:01:59.9]} 11... Bb7 {[%clk 0:02:00.5]} 12. Ne5 {[%clk 0:01:58.2]} 12...
Qe7 {[%clk 0:01:47.6]} 13. f4 {[%clk 0:01:54.3]} 13... Rfc8 {[%clk 0:01:45.5]}
14. Bf3 {[%clk 0:01:50.1]} 14... Nxe5 {[%clk 0:01:38.3]} 15. fxe5 {[%clk
0:01:20.1]} 15... Nd7 {[%clk 0:01:36.6]} 16. Qf2 {[%clk 0:01:12.6]} 16... a4
{[%clk 0:01:04.8]} 17. cxd5 {[%clk 0:01:07.6]} 17... cxd5 {[%clk 0:01:05.7]} 18.
bxa4 {[%clk 0:01:01.1]} 18... f6 {[%clk 0:00:52.6]} 19. exf6 {[%clk 0:00:59.1]}
19... Nxf6 {[%clk 0:00:53.5]} 20. Be2 {[%clk 0:00:56.3]} 20... Qb4 {[%clk
0:00:39.2]} 21. Rb1 {[%clk 0:00:28.7]} 21... Rxc3 {[%clk 0:00:24.7]} 22. Ba1
{[%clk 0:00:29]} 22... Qa3 {[%clk 0:00:23]} 23. Rxb6 {[%clk 0:00:20.6]} 23...
Bc6 {[%clk 0:00:20]} 24. Bb2 {[%clk 0:00:20.9]} 24... Qxa2 {[%clk 0:00:09.5]}
25. Bxc3 {[%clk 0:00:21.3]} 25... Rf8 {[%clk 0:00:10]} 26. Ra1 {[%clk
0:00:20.1]} 26... Qc2 {[%clk 0:00:09.6]} 27. Rxc6 {[%clk 0:00:17]} 27... Ne4
{[%clk 0:00:10]} 28. Qe1 {[%clk 0:00:12.6]} 28... Bh6 {[%clk 0:00:10.4]} 29. Bf3
{[%clk 0:00:12.5]} 29... Ng5 {[%clk 0:00:10.3]} 30. Qf1 {[%clk 0:00:06.1]} 30...
Nxf3+ {[%clk 0:00:06.1]} 31. gxf3 {[%clk 0:00:07]} 31... Bxe3+ {[%clk
0:00:05.9]} 32. Kh1 {[%clk 0:00:07.7]} 32... Bf4 {[%clk 0:00:05.2]} 33. Qg2
{[%clk 0:00:06]} 33... Qd3 {[%clk 0:00:05.7]} 34. Re1 {[%clk 0:00:05.7]} 34...
Bxh2 {[%clk 0:00:04.9]} 35. Kxh2 {[%clk 0:00:05.2]} 35... Rxf3 {[%clk 0:00:03]}
36. Rcxe6 {[%clk 0:00:05.8]} 36... Rf4 {[%clk 0:00:01.9]} 37. R1e3 {[%clk
0:00:04.6]} 37... Rh4+ {[%clk 0:00:01.9]} 38. Kg3 {[%clk 0:00:04.1]} 38... Qf5
{[%clk 0:00:01.7]} 39. Kxh4 {[%clk 0:00:03.8]} 39... Qf4+ {[%clk 0:00:01.7]} 40.
Kh3 {[%clk 0:00:04]} 40... Qh6+ {[%clk 0:00:02.3]} 41. Kg3 {[%clk 0:00:04.6]}
41... Qg5+ {[%clk 0:00:02.9]} 42. Kf2 {[%clk 0:00:05.2]} 42... Qxe3+ {[%clk
0:00:03]} 43. Kxe3 {[%clk 0:00:05.1]} 1-0

[Event "Late-Titled-Tuesday-Blitz-August-29-2023"]
[Site "Chess.com"]
[Date "2023.08.29"]
[Round "5"]
[White "Zhigalko_Sergei"]
[Black "Ali_rastbod"]
[Result "1-0"]
[WhiteElo "2930"]
[BlackElo "2677"]
[TimeControl "180+1"]
[EndTime "14:55:17 PDT"]
[Termination "Zhigalko_Sergei won on time"]

1. e4 {[%clk 0:03:00.9]} 1... c6 {[%clk 0:02:52.2]} 2. d4 {[%clk 0:03:00.1]}
2... d5 {[%clk 0:02:53.1]} 3. e5 {[%clk 0:03:00.5]} 3... c5 {[%clk 0:02:53.3]}
4. Nf3 {[%clk 0:03:00.2]} 4... cxd4 {[%clk 0:02:53.3]} 5. Qxd4 {[%clk
0:03:01.1]} 5... Nc6 {[%clk 0:02:51.1]} 6. Qf4 {[%clk 0:03:01.1]} 6... e6 {[%clk
0:02:51.2]} 7. Bd3 {[%clk 0:03:01.2]} 7... Nb4 {[%clk 0:02:50.6]} 8. O-O {[%clk
0:03:01.5]} 8... Nxd3 {[%clk 0:02:48.6]} 9. cxd3 {[%clk 0:03:02.4]} 9... h6
{[%clk 0:02:46.5]} 10. Nc3 {[%clk 0:03:02.6]} 10... Bd7 {[%clk 0:02:45.8]} 11.
Ne2 {[%clk 0:02:59.6]} 11... Ne7 {[%clk 0:02:44.2]} 12. Ned4 {[%clk 0:02:59.7]}
12... Nc6 {[%clk 0:02:39.3]} 13. Be3 {[%clk 0:02:58]} 13... a6 {[%clk
0:02:38.6]} 14. Rac1 {[%clk 0:02:57.9]} 14... Be7 {[%clk 0:02:37.9]} 15. Qg3
{[%clk 0:02:57.9]} 15... Kf8 {[%clk 0:02:35.5]} 16. a3 {[%clk 0:02:39.7]} 16...
Rc8 {[%clk 0:02:27.3]} 17. b4 {[%clk 0:02:34]} 17... Kg8 {[%clk 0:02:17.1]} 18.
Nb3 {[%clk 0:02:13.8]} 18... Kh7 {[%clk 0:02:07.9]} 19. Bc5 {[%clk 0:02:12.7]}
19... b6 {[%clk 0:02:00.5]} 20. Bxe7 {[%clk 0:02:07]} 20... Nxe7 {[%clk
0:02:01.4]} 21. Nbd4 {[%clk 0:02:00.6]} 21... Ba4 {[%clk 0:01:54.8]} 22. Qf4
{[%clk 0:01:50.7]} 22... Rf8 {[%clk 0:01:46.8]} 23. h4 {[%clk 0:01:35.2]} 23...
Ng6 {[%clk 0:01:41.4]} 24. Qg4 {[%clk 0:01:28.4]} 24... Qd7 {[%clk 0:01:38.5]}
25. h5 {[%clk 0:01:22.9]} 25... Ne7 {[%clk 0:01:33]} 26. Qf4 {[%clk 0:01:22.9]}
26... Kg8 {[%clk 0:01:27.8]} 27. g4 {[%clk 0:01:18.9]} 27... Rxc1 {[%clk
0:01:15.2]} 28. Rxc1 {[%clk 0:01:18.8]} 28... Rc8 {[%clk 0:01:14.2]} 29. g5
{[%clk 0:00:57.9]} 29... Rxc1+ {[%clk 0:01:09.1]} 30. Qxc1 {[%clk 0:00:58.8]}
30... hxg5 {[%clk 0:00:58.5]} 31. Qxg5 {[%clk 0:00:55.5]} 31... Kh7 {[%clk
0:00:55.3]} 32. Qf4 {[%clk 0:00:47.4]} 32... Nc6 {[%clk 0:00:42.5]} 33. Nxc6
{[%clk 0:00:10.6]} 33... Bxc6 {[%clk 0:00:41.8]} 34. h6 {[%clk 0:00:10.9]} 34...
gxh6 {[%clk 0:00:23.4]} 35. Nh2 {[%clk 0:00:10.8]} 35... Qe7 {[%clk 0:00:15.9]}
36. Ng4 {[%clk 0:00:10.5]} 36... Qf8 {[%clk 0:00:15.4]} 37. Nf6+ {[%clk
0:00:05.7]} 37... Kh8 {[%clk 0:00:15.6]} 38. f3 {[%clk 0:00:04.9]} 38... d4
{[%clk 0:00:14.5]} 39. Kf2 {[%clk 0:00:03.3]} 39... Qg7 {[%clk 0:00:11.9]} 40.
Qxd4 {[%clk 0:00:03.3]} 40... Qg5 {[%clk 0:00:08]} 41. Qd8+ {[%clk 0:00:02.8]}
1-0

[Event "Late-Titled-Tuesday-Blitz-August-29-2023"]
[Site "Chess.com"]
[Date "2023.08.29"]
[Round "5"]
[White "Fuzesabonyilaci"]
[Black "MYMChessAcademy"]
[Result "1-0"]
[WhiteElo "2409"]
[BlackElo "2229"]
[TimeControl "180+1"]
[EndTime "14:55:18 PDT"]
[Termination "Fuzesabonyilaci won by checkmate"]

1. d4 {[%clk 0:03:00.9]} 1... d5 {[%clk 0:02:56.1]} 2. Nc3 {[%clk 0:03:01.8]}
2... Nf6 {[%clk 0:02:46.7]} 3. Bf4 {[%clk 0:03:01.5]} 3... e6 {[%clk 0:02:45.3]}
4. Qd2 {[%clk 0:02:57.2]} 4... Bb4 {[%clk 0:02:40.7]} 5. f3 {[%clk 0:02:56.2]}
5... c5 {[%clk 0:02:38.6]} 6. a3 {[%clk 0:02:55.7]} 6... Ba5 {[%clk 0:02:37.4]}
7. O-O-O {[%clk 0:02:42.8]} 7... Nc6 {[%clk 0:02:33.2]} 8. e3 {[%clk 0:02:42.7]}
8... O-O {[%clk 0:02:29.3]} 9. dxc5 {[%clk 0:02:42.4]} 9... e5 {[%clk
0:02:28.1]} 10. Bg5 {[%clk 0:02:21.3]} 10... d4 {[%clk 0:02:25.3]} 11. exd4
{[%clk 0:02:18.5]} 11... exd4 {[%clk 0:02:26.2]} 12. Qf4 {[%clk 0:02:11.3]}
12... Bxc3 {[%clk 0:01:55.7]} 13. Bxf6 {[%clk 0:02:09.9]} 13... gxf6 {[%clk
0:01:21.9]} 14. bxc3 {[%clk 0:02:04.8]} 14... Qa5 {[%clk 0:01:21.8]} 15. cxd4
{[%clk 0:01:44.5]} 15... Qxa3+ {[%clk 0:01:21.7]} 16. Kd2 {[%clk 0:01:44.6]}
16... Qb4+ {[%clk 0:01:18.6]} 17. Ke2 {[%clk 0:01:25.4]} 17... Qc4+ {[%clk
0:01:16.3]} 18. Kf2 {[%clk 0:01:23.2]} 18... Qxc2+ {[%clk 0:01:14.1]} 19. Rd2
{[%clk 0:01:23.7]} 19... Qg6 {[%clk 0:01:11]} 20. h4 {[%clk 0:01:03.8]} 20... h5
{[%clk 0:01:02.5]} 21. Bd3 {[%clk 0:01:02.5]} 21... f5 {[%clk 0:01:01.3]} 22.
Rh3 {[%clk 0:01:02]} 22... Qf6 {[%clk 0:00:52]} 23. Ne2 {[%clk 0:00:37.3]} 23...
Rd8 {[%clk 0:00:45]} 24. Rg3+ {[%clk 0:00:32.3]} 24... Kf8 {[%clk 0:00:45.4]}
25. Bc2 {[%clk 0:00:23.8]} 25... Be6 {[%clk 0:00:35.7]} 26. Rg5 {[%clk 0:00:23]}
26... Ne7 {[%clk 0:00:29.8]} 27. Rxh5 {[%clk 0:00:21.6]} 27... Ng6 {[%clk
0:00:29.7]} 28. Qg5 {[%clk 0:00:17.1]} 28... Qg7 {[%clk 0:00:27.8]} 29. Qh6
{[%clk 0:00:16.2]} 29... Qxh6 {[%clk 0:00:12.2]} 30. Rxh6 {[%clk 0:00:17.1]}
30... Kg7 {[%clk 0:00:12.8]} 31. Rh5 {[%clk 0:00:17.1]} 31... Rh8 {[%clk
0:00:05.7]} 32. Rxh8 {[%clk 0:00:16.6]} 32... Rxh8 {[%clk 0:00:06.6]} 33. g3
{[%clk 0:00:16.8]} 33... Bd5 {[%clk 0:00:05.5]} 34. Bxf5 {[%clk 0:00:15.6]}
34... Ne7 {[%clk 0:00:04.5]} 35. Be4 {[%clk 0:00:15.1]} 35... Rd8 {[%clk
0:00:05.3]} 36. Nf4 {[%clk 0:00:13.8]} 36... Be6 {[%clk 0:00:02.9]} 37. Bxb7
{[%clk 0:00:13.2]} 37... Nd5 {[%clk 0:00:02.6]} 38. Bxd5 {[%clk 0:00:12.7]}
38... Bxd5 {[%clk 0:00:03.5]} 39. Nxd5 {[%clk 0:00:12.3]} 39... Rxd5 {[%clk
0:00:04.4]} 40. c6 {[%clk 0:00:12.1]} 40... Rd8 {[%clk 0:00:05.3]} 41. d5 {[%clk
0:00:12.1]} 41... Rc8 {[%clk 0:00:06.2]} 42. Ke3 {[%clk 0:00:11.8]} 42... Kf8
{[%clk 0:00:06.3]} 43. Kd4 {[%clk 0:00:12.2]} 43... Ke7 {[%clk 0:00:07.2]} 44.
Kc5 {[%clk 0:00:12.6]} 44... a5 {[%clk 0:00:07.3]} 45. d6+ {[%clk 0:00:13.1]}
45... Ke6 {[%clk 0:00:07.2]} 46. Re2+ {[%clk 0:00:12.6]} 46... Kf6 {[%clk
0:00:07.2]} 47. d7 {[%clk 0:00:13.5]} 47... Rd8 {[%clk 0:00:07.5]} 48. Kd6
{[%clk 0:00:13.7]} 48... a4 {[%clk 0:00:07.3]} 49. c7 {[%clk 0:00:14.6]} 49...
Rxd7+ {[%clk 0:00:07.7]} 50. Kxd7 {[%clk 0:00:15.2]} 50... a3 {[%clk 0:00:08.5]}
51. c8=Q {[%clk 0:00:15.7]} 51... Kg7 {[%clk 0:00:09.3]} 52. Qc3+ {[%clk
0:00:15.3]} 52... f6 {[%clk 0:00:10.2]} 53. Re7+ {[%clk 0:00:14.1]} 53... Kg6
{[%clk 0:00:11.1]} 54. Qd3+ {[%clk 0:00:13.9]} 54... f5 {[%clk 0:00:12]} 55.
Re6+ {[%clk 0:00:13.3]} 55... Kg7 {[%clk 0:00:12.7]} 56. Qxf5 {[%clk 0:00:13.2]}
56... a2 {[%clk 0:00:13.6]} 57. Qf6+ {[%clk 0:00:12.9]} 57... Kh7 {[%clk
0:00:13.3]} 58. Qg6+ {[%clk 0:00:12.8]} 58... Kh8 {[%clk 0:00:13.4]} 59. Re8#
{[%clk 0:00:13.7]} 1-0